{"text_format":"3","workbook":"xlsx","n_sheets":1,"sheets":["Айлық отбасы бюджеті"],"not_rendered":{"defined_names":1},"read":"whole","date_system":"1900"}

{"sheet":"Айлық отбасы бюджеті","index":0,"n_rows":68,"n_cols":9,"rows_kept":68,"merged":[[0,0,0,6],[2,0,2,1],[2,5,2,6],[8,5,8,6],[18,0,18,3],[27,5,27,8],[29,0,29,3],[36,0,36,3],[37,5,37,8],[42,0,42,3],[44,5,44,8],[54,0,54,3],[54,5,54,8],[61,0,61,3],[62,5,62,8]]}
["Айлық отбасы бюджеті"]
[]
["Жалпы жоспарланған шығын",null,"Жалпы нақты шығын","Жалпы айырмашылық",null,"Жоспарланған айлық пайда"]
[null,{"$f":"Housing[[#Totals],[Жоспарланған шығын]]+Transportation[[#Totals],[Жоспарланған шығын]]+Insurance[[#Totals],[Жоспарланған шығын]]+Food[[#Totals],[Жоспарланған шығын]]+Children[[#Totals],[Жоспарланған шығын]]+Legal[[#Totals],[Жоспарланған шығын]]+Savings[[#Totals],[Жоспарланған шығын]]+Loans[[#Totals],[Жоспарланған шығын]]+Entertainment[[#Totals],[Жоспарланған шығын]]+Taxes[[#Totals],[Жоспарланған шығын]]+PersonalCare[[#Totals],[Жоспарланған шығын]]+Pets[[#Totals],[Жоспарланған шығын]]+Gifts[[#Totals],[Жоспарланған шығын]]","v":{"v":1203,"d":"T1,203"}},{"$f":"Housing[[#Totals],[Нақты шығын]]+Transportation[[#Totals],[Нақты шығын]]+Insurance[[#Totals],[Нақты шығын]]+Food[[#Totals],[Нақты шығын]]+Children[[#Totals],[Нақты шығын]]+Legal[[#Totals],[Нақты шығын]]+Savings[[#Totals],[Нақты шығын]]+Loans[[#Totals],[Нақты шығын]]+Entertainment[[#Totals],[Нақты шығын]]+Taxes[[#Totals],[Нақты шығын]]+PersonalCare[[#Totals],[Нақты шығын]]+Pets[[#Totals],[Нақты шығын]]+Gifts[[#Totals],[Нақты шығын]]","v":{"v":1317,"d":"T1,317"}},{"$f":"Housing[[#Totals],[Айырмашылық]]+Transportation[[#Totals],[Айырмашылық]]+Insurance[[#Totals],[Айырмашылық]]+Food[[#Totals],[Айырмашылық]]+Children[[#Totals],[Айырмашылық]]+Legal[[#Totals],[Айырмашылық]]+Savings[[#Totals],[Айырмашылық]]+Loans[[#Totals],[Айырмашылық]]+Entertainment[[#Totals],[Айырмашылық]]+Taxes[[#Totals],[Айырмашылық]]+PersonalCare[[#Totals],[Айырмашылық]]+Pets[[#Totals],[Айырмашылық]]+Gifts[[#Totals],[Айырмашылық]]","v":{"v":-114,"d":"(T114)"}},null,"1-пайда",{"v":4000,"d":"T4,000"}]
[{"$nulls":5},"2-пайда",{"v":1200,"d":"T1,200"}]
["Тұрғын үй","Жоспарланған шығын","Нақты шығын","Айырмашылық",null,"Қосымша пайда",{"v":300,"d":"T300"}]
["Ипотека немесе жалға беру ақысы",{"v":1000,"d":"T1,000"},{"v":1000,"d":"T1,000"},{"$f":"Housing[Жоспарланған шығын]-Housing[Нақты шығын]","v":{"v":0,"d":"T0"}},null,"Жалпы айлық пайда",{"$f":"SUM(G4:G6)","v":{"v":5500,"d":"T5,500"}}]
["Екінші ипотека немесе жалға беру ақысы",{"v":0,"d":"T0"},{"v":0,"d":"T0"},{"$f":"Housing[Жоспарланған шығын]-Housing[Нақты шығын]","v":{"v":0,"d":"T0"}}]
["Телефон",{"v":62,"d":"T62"},{"v":100,"d":"T100"},{"$f":"Housing[Жоспарланған шығын]-Housing[Нақты шығын]","v":{"v":-38,"d":"(T38)"}},null,"Нақты айлық пайда"]
["Электр қуаты",{"v":44,"d":"T44"},{"v":125,"d":"T125"},{"$f":"Housing[Жоспарланған шығын]-Housing[Нақты шығын]","v":{"v":-81,"d":"(T81)"}},null,"1-пайда",{"v":4000,"d":"T4,000"}]
["Газ",{"v":22,"d":"T22"},{"v":35,"d":"T35"},{"$f":"Housing[Жоспарланған шығын]-Housing[Нақты шығын]","v":{"v":-13,"d":"(T13)"}},null,"2-пайда",{"v":1200,"d":"T1,200"}]
["Су және құбыр",{"v":8,"d":"T8"},{"v":8,"d":"T8"},{"$f":"Housing[Жоспарланған шығын]-Housing[Нақты шығын]","v":{"v":0,"d":"T0"}},null,"Қосымша пайда",{"v":300,"d":"T300"}]
["Кабель",{"v":34,"d":"T34"},{"v":39,"d":"T39"},{"$f":"Housing[Жоспарланған шығын]-Housing[Нақты шығын]","v":{"v":-5,"d":"(T5)"}},null,"Жалпы айлық пайда",{"$f":"SUM(G10:G12)","v":{"v":5500,"d":"T5,500"}}]
["Қалдықты шығару",{"v":10,"d":"T10"},{"v":10,"d":"T10"},{"$f":"Housing[Жоспарланған шығын]-Housing[Нақты шығын]","v":{"v":0,"d":"T0"}}]
["Қызмет көрсету немесе қалпына келтіру",{"v":23,"d":"T23"},{"v":0,"d":"T0"},{"$f":"Housing[Жоспарланған шығын]-Housing[Нақты шығын]","v":{"v":23,"d":"T23"}},null,"Жоспарланған қалдық\n",{"$f":"SUM(G7-B4)","v":{"v":4297,"d":"T4,297"}}]
["Материалдар",{"v":0,"d":"T0"},{"v":0,"d":"T0"},{"$f":"Housing[Жоспарланған шығын]-Housing[Нақты шығын]","v":{"v":0,"d":"T0"}},null,"Нақты қалдық",{"$f":"SUM(G13-C4)","v":{"v":4183,"d":"T4,183"}}]
["Басқа",{"v":0,"d":"T0"},{"v":0,"d":"T0"},{"$f":"Housing[Жоспарланған шығын]-Housing[Нақты шығын]","v":{"v":0,"d":"T0"}},null,"Айырмашылық",{"$f":"SUM(G16-G15)","v":{"v":-114,"d":"(T114)"}}]
["Барлығы",{"$f":"SUBTOTAL(109,Housing[Жоспарланған шығын])","v":{"v":1203,"d":"T1,203"}},{"$f":"SUBTOTAL(109,Housing[Нақты шығын])","v":{"v":1317,"d":"T1,317"}},{"$f":"SUBTOTAL(109,Housing[Айырмашылық])","v":{"v":-114,"d":"(T114)"}}]
[]
["Көлік","Жоспарланған шығын","Нақты шығын","Айырмашылық",null,"Қарыз","Жоспарланған шығын","Нақты шығын","Айырмашылық"]
["1-көлік төлемі",null,null,{"$f":"Transportation[Жоспарланған шығын]-Transportation[Нақты шығын]","v":{"v":0,"d":"T0"}},null,"Жеке",null,null,{"$f":"Loans[Жоспарланған шығын]-Loans[Нақты шығын]","v":{"v":0,"d":"T0"}}]
["2-көлік төлемі",null,null,{"$f":"Transportation[Жоспарланған шығын]-Transportation[Нақты шығын]","v":{"v":0,"d":"T0"}},null,"Студент",null,null,{"$f":"Loans[Жоспарланған шығын]-Loans[Нақты шығын]","v":{"v":0,"d":"T0"}}]
["Автобус/такси ақысы",null,null,{"$f":"Transportation[Жоспарланған шығын]-Transportation[Нақты шығын]","v":{"v":0,"d":"T0"}},null,"Несиелік кәртішке",null,null,{"$f":"Loans[Жоспарланған шығын]-Loans[Нақты шығын]","v":{"v":0,"d":"T0"}}]
["Сақтандыру",null,null,{"$f":"Transportation[Жоспарланған шығын]-Transportation[Нақты шығын]","v":{"v":0,"d":"T0"}},null,"Несиелік кәртішке",null,null,{"$f":"Loans[Жоспарланған шығын]-Loans[Нақты шығын]","v":{"v":0,"d":"T0"}}]
["Лицензиялау",null,null,{"$f":"Transportation[Жоспарланған шығын]-Transportation[Нақты шығын]","v":{"v":0,"d":"T0"}},null,"Несиелік кәртішке",null,null,{"$f":"Loans[Жоспарланған шығын]-Loans[Нақты шығын]","v":{"v":0,"d":"T0"}}]
["Отын",null,null,{"$f":"Transportation[Жоспарланған шығын]-Transportation[Нақты шығын]","v":{"v":0,"d":"T0"}},null,"Басқа",null,null,{"$f":"Loans[Жоспарланған шығын]-Loans[Нақты шығын]","v":{"v":0,"d":"T0"}}]
["Қызмет көрсету",null,null,{"$f":"Transportation[Жоспарланған шығын]-Transportation[Нақты шығын]","v":{"v":0,"d":"T0"}},null,"Барлығы",{"$f":"SUBTOTAL(109,Loans[Жоспарланған шығын])","v":{"v":0,"d":"T0"}},{"$f":"SUBTOTAL(109,Loans[Нақты шығын])","v":{"v":0,"d":"T0"}},{"$f":"SUBTOTAL(109,Loans[Айырмашылық])","v":{"v":0,"d":"T0"}}]
["Басқа",null,null,{"$f":"Transportation[Жоспарланған шығын]-Transportation[Нақты шығын]","v":{"v":0,"d":"T0"}}]
["Барлығы",{"$f":"SUBTOTAL(109,Transportation[Жоспарланған шығын])","v":{"v":0,"d":"T0"}},{"$f":"SUBTOTAL(109,Transportation[Нақты шығын])","v":{"v":0,"d":"T0"}},{"$f":"SUBTOTAL(109,Transportation[Айырмашылық])","v":{"v":0,"d":"T0"}},null,"Ойын-сауық","Жоспарланған шығын","Нақты шығын","Айырмашылық"]
[{"$nulls":5},"Теледидар/DVD",null,null,{"$f":"Entertainment[Жоспарланған шығын]-Entertainment[Нақты шығын]","v":{"v":0,"d":"T0"}}]
["Сақтандыру","Жоспарланған шығын","Нақты шығын","Айырмашылық",null,"Ықшам дискілер",null,null,{"$f":"Entertainment[Жоспарланған шығын]-Entertainment[Нақты шығын]","v":{"v":0,"d":"T0"}}]
["Үй",null,null,{"$f":"Insurance[Жоспарланған шығын]-Insurance[Нақты шығын]","v":{"v":0,"d":"T0"}},null,"Кино",null,null,{"$f":"Entertainment[Жоспарланған шығын]-Entertainment[Нақты шығын]","v":{"v":0,"d":"T0"}}]
["Денсаулық",null,null,{"$f":"Insurance[Жоспарланған шығын]-Insurance[Нақты шығын]","v":{"v":0,"d":"T0"}},null,"Концерт",null,null,{"$f":"Entertainment[Жоспарланған шығын]-Entertainment[Нақты шығын]","v":{"v":0,"d":"T0"}}]
["Пайдалану уақыты",null,null,{"$f":"Insurance[Жоспарланған шығын]-Insurance[Нақты шығын]","v":{"v":0,"d":"T0"}},null,"Спорттық шаралар",null,null,{"$f":"Entertainment[Жоспарланған шығын]-Entertainment[Нақты шығын]","v":{"v":0,"d":"T0"}}]
["Басқа",null,null,{"$f":"Insurance[Жоспарланған шығын]-Insurance[Нақты шығын]","v":{"v":0,"d":"T0"}},null,"Театр",null,null,{"$f":"Entertainment[Жоспарланған шығын]-Entertainment[Нақты шығын]","v":{"v":0,"d":"T0"}}]
["Total",{"$f":"SUBTOTAL(109,Insurance[Жоспарланған шығын])","v":{"v":0,"d":"T0"}},{"$f":"SUBTOTAL(109,Insurance[Нақты шығын])","v":{"v":0,"d":"T0"}},{"$f":"SUBTOTAL(109,Insurance[Айырмашылық])","v":{"v":0,"d":"T0"}},null,"Басқа",null,null,{"$f":"Entertainment[Жоспарланған шығын]-Entertainment[Нақты шығын]","v":{"v":0,"d":"T0"}}]
[{"$nulls":5},"Барлығы",{"$f":"SUBTOTAL(109,Entertainment[Жоспарланған шығын])","v":{"v":0,"d":"T0"}},{"$f":"SUBTOTAL(109,Entertainment[Нақты шығын])","v":{"v":0,"d":"T0"}},{"$f":"SUBTOTAL(109,Entertainment[Айырмашылық])","v":{"v":0,"d":"T0"}}]
["Қорек","Жоспарланған шығын","Нақты шығын","Айырмашылық"]
["Азық-түлік дүкендері",null,null,{"$f":"Food[Жоспарланған шығын]-Food[Нақты шығын]","v":{"v":0,"d":"T0"}},null,"Салық","Жоспарланған шығын","Нақты шығын","Айырмашылық"]
["Сыртта тамақ ішу",null,null,{"$f":"Food[Жоспарланған шығын]-Food[Нақты шығын]","v":{"v":0,"d":"T0"}},null,"Федеральдық",null,null,{"$f":"Taxes[Жоспарланған шығын]-Taxes[Нақты шығын]","v":{"v":0,"d":"T0"}}]
["Басқа",null,null,{"$f":"Food[Жоспарланған шығын]-Food[Нақты шығын]","v":{"v":0,"d":"T0"}},null,"Облыс",null,null,{"$f":"Taxes[Жоспарланған шығын]-Taxes[Нақты шығын]","v":{"v":0,"d":"T0"}}]
["Барлығы",{"$f":"SUBTOTAL(109,Food[Жоспарланған шығын])","v":{"v":0,"d":"T0"}},{"$f":"SUBTOTAL(109,Food[Нақты шығын])","v":{"v":0,"d":"T0"}},{"$f":"SUBTOTAL(109,Food[Айырмашылық])","v":{"v":0,"d":"T0"}},null,"Жергілікті",null,null,{"$f":"Taxes[Жоспарланған шығын]-Taxes[Нақты шығын]","v":{"v":0,"d":"T0"}}]
[{"$nulls":5},"Басқа",null,null,{"$f":"Taxes[Жоспарланған шығын]-Taxes[Нақты шығын]","v":{"v":0,"d":"T0"}}]
["Балалар","Жоспарланған шығын","Нақты шығын","Айырмашылық",null,"Барлығы",{"$f":"SUBTOTAL(109,Taxes[Жоспарланған шығын])","v":{"v":0,"d":"T0"}},{"$f":"SUBTOTAL(109,Taxes[Нақты шығын])","v":{"v":0,"d":"T0"}},{"$f":"SUBTOTAL(109,Taxes[Айырмашылық])","v":{"v":0,"d":"T0"}}]
["Медициналық бақылау",null,null,{"$f":"Children[Жоспарланған шығын]-Children[Нақты шығын]","v":{"v":0,"d":"T0"}}]
["Киім",null,null,{"$f":"Children[Жоспарланған шығын]-Children[Нақты шығын]","v":{"v":0,"d":"T0"}},null,"Жеке күтім","Жоспарланған шығын","Нақты шығын","Айырмашылық"]
["Мектеп ақысы",null,null,{"$f":"Children[Жоспарланған шығын]-Children[Нақты шығын]","v":{"v":0,"d":"T0"}},null,"Медициналық бақылау",null,null,{"$f":"PersonalCare[Жоспарланған шығын]-PersonalCare[Нақты шығын]","v":{"v":0,"d":"T0"}}]
["Мектеп құралдары",null,null,{"$f":"Children[Жоспарланған шығын]-Children[Нақты шығын]","v":{"v":0,"d":"T0"}},null,"Шаш/тырнақ",null,null,{"$f":"PersonalCare[Жоспарланған шығын]-PersonalCare[Нақты шығын]","v":{"v":0,"d":"T0"}}]
["Ұйым төлемдері немесе шығындары",null,null,{"$f":"Children[Жоспарланған шығын]-Children[Нақты шығын]","v":{"v":0,"d":"T0"}},null,"Киім",null,null,{"$f":"PersonalCare[Жоспарланған шығын]-PersonalCare[Нақты шығын]","v":{"v":0,"d":"T0"}}]
["Түскі ас ақшасы",null,null,{"$f":"Children[Жоспарланған шығын]-Children[Нақты шығын]","v":{"v":0,"d":"T0"}},null,"Құрғақ тазалау",null,null,{"$f":"PersonalCare[Жоспарланған шығын]-PersonalCare[Нақты шығын]","v":{"v":0,"d":"T0"}}]
["Бала күтімі",null,null,{"$f":"Children[Жоспарланған шығын]-Children[Нақты шығын]","v":{"v":0,"d":"T0"}},null,"Денсаулық клубы",null,null,{"$f":"PersonalCare[Жоспарланған шығын]-PersonalCare[Нақты шығын]","v":{"v":0,"d":"T0"}}]
["Ойыншықтар/ойындар",null,null,{"$f":"Children[Жоспарланған шығын]-Children[Нақты шығын]","v":{"v":0,"d":"T0"}},null,"Ұйым төлемдері/шығындары",null,null,{"$f":"PersonalCare[Жоспарланған шығын]-PersonalCare[Нақты шығын]","v":{"v":0,"d":"T0"}}]
["Басқа",null,null,{"$f":"Children[Жоспарланған шығын]-Children[Нақты шығын]","v":{"v":0,"d":"T0"}},null,"Басқа",null,null,{"$f":"PersonalCare[Жоспарланған шығын]-PersonalCare[Нақты шығын]","v":{"v":0,"d":"T0"}}]
["Барлығы",{"$f":"SUBTOTAL(109,Children[Жоспарланған шығын])","v":{"v":0,"d":"T0"}},{"$f":"SUBTOTAL(109,Children[Нақты шығын])","v":{"v":0,"d":"T0"}},{"$f":"SUBTOTAL(109,Children[Айырмашылық])","v":{"v":0,"d":"T0"}},null,"Барлығы",{"$f":"SUBTOTAL(109,PersonalCare[Жоспарланған шығын])","v":{"v":0,"d":"T0"}},{"$f":"SUBTOTAL(109,PersonalCare[Нақты шығын])","v":{"v":0,"d":"T0"}},{"$f":"SUBTOTAL(109,PersonalCare[Айырмашылық])","v":{"v":0,"d":"T0"}}]
[]
["Заңды","Жоспарланған шығын","Нақты шығын","Айырмашылық",null,"Үй жануарлары","Жоспарланған шығын","Нақты шығын","Айырмашылық"]
["Қорғаушы",null,null,{"$f":"Legal[Жоспарланған шығын]-Legal[Нақты шығын]","v":{"v":0,"d":"T0"}},null,"Қорек",null,null,{"$f":"Pets[Жоспарланған шығын]-Pets[Нақты шығын]","v":{"v":0,"d":"T0"}}]
["Алимент",null,null,{"$f":"Legal[Жоспарланған шығын]-Legal[Нақты шығын]","v":{"v":0,"d":"T0"}},null,"Медициналық бақылау",null,null,{"$f":"Pets[Жоспарланған шығын]-Pets[Нақты шығын]","v":{"v":0,"d":"T0"}}]
["Төлемдер",null,null,{"$f":"Legal[Жоспарланған шығын]-Legal[Нақты шығын]","v":{"v":0,"d":"T0"}},null,"Тазалау",null,null,{"$f":"Pets[Жоспарланған шығын]-Pets[Нақты шығын]","v":{"v":0,"d":"T0"}}]
["Басқа",null,null,{"$f":"Legal[Жоспарланған шығын]-Legal[Нақты шығын]","v":{"v":0,"d":"T0"}},null,"Ойыншықтар",null,null,{"$f":"Pets[Жоспарланған шығын]-Pets[Нақты шығын]","v":{"v":0,"d":"T0"}}]
["Барлығы",{"$f":"SUBTOTAL(109,Legal[Жоспарланған шығын])","v":{"v":0,"d":"T0"}},{"$f":"SUBTOTAL(109,Legal[Нақты шығын])","v":{"v":0,"d":"T0"}},{"$f":"SUBTOTAL(109,Legal[Айырмашылық])","v":{"v":0,"d":"T0"}},null,"Басқа",null,null,{"$f":"Pets[Жоспарланған шығын]-Pets[Нақты шығын]","v":{"v":0,"d":"T0"}}]
[{"$nulls":5},"Барлығы",{"$f":"SUBTOTAL(109,Pets[Жоспарланған шығын])","v":{"v":0,"d":"T0"}},{"$f":"SUBTOTAL(109,Pets[Нақты шығын])","v":{"v":0,"d":"T0"}},{"$f":"SUBTOTAL(109,Pets[Айырмашылық])","v":{"v":0,"d":"T0"}}]
["Жинақ/салымдар","Жоспарланған шығын","Нақты шығын","Айырмашылық"]
["Зейнеткерлік шот",null,null,{"$f":"Savings[Жоспарланған шығын]-Savings[Нақты шығын]","v":{"v":0,"d":"T0"}},null,"Сыйлар және құрбандық","Жоспарланған шығын","Нақты шығын","Айырмашылық"]
["Салым шоты",null,null,{"$f":"Savings[Жоспарланған шығын]-Savings[Нақты шығын]","v":{"v":0,"d":"T0"}},null,"1-қайырымдылық",null,null,{"$f":"Gifts[Жоспарланған шығын]-Gifts[Нақты шығын]","v":{"v":0,"d":"T0"}}]
["Колледж",null,null,{"$f":"Savings[Жоспарланған шығын]-Savings[Нақты шығын]","v":{"v":0,"d":"T0"}},null,"2-қайырымдылық",null,null,{"$f":"Gifts[Жоспарланған шығын]-Gifts[Нақты шығын]","v":{"v":0,"d":"T0"}}]
["Басқа",null,null,{"$f":"Savings[Жоспарланған шығын]-Savings[Нақты шығын]","v":{"v":0,"d":"T0"}},null,"3-қайырымдылық",null,null,{"$f":"Gifts[Жоспарланған шығын]-Gifts[Нақты шығын]","v":{"v":0,"d":"T0"}}]
["Барлығы",{"$f":"SUBTOTAL(109,Savings[Жоспарланған шығын])","v":{"v":0,"d":"T0"}},{"$f":"SUBTOTAL(109,Savings[Нақты шығын])","v":{"v":0,"d":"T0"}},{"$f":"SUBTOTAL(109,Savings[Айырмашылық])","v":{"v":0,"d":"T0"}},null,"Барлығы",{"$f":"SUBTOTAL(109,Gifts[Жоспарланған шығын])","v":{"v":0,"d":"T0"}},{"$f":"SUBTOTAL(109,Gifts[Нақты шығын])","v":{"v":0,"d":"T0"}},{"$f":"SUBTOTAL(109,Gifts[Айырмашылық])","v":{"v":0,"d":"T0"}}]